bitfinex/quotes_ETHUSD_20241018
["timestamp","ask_amount","ask_price","bid_price","bid_amount"]
[1729230175284,4.57032,2623.0,2622.7,0.14863671]
[1729230177781,3.81259,2622.9,2622.7,0.14863671]
[1729230178146,0.7579,2623.0,2622.7,0.14863671]
[1729230178550,4.57032,2623.0,2622.7,0.14863671]
[1729230180690,3.81259,2622.9,2622.7,0.14863671]
[1729230181068,3.81271,2622.8,2622.7,0.14863671]
[1729230181995,6.3175399,2622.8,2622.7,0.14863671]
[1729230182155,6.3175399,2622.8,2622.6,0.09523]
[1729230182156,4.64106,2622.7,2622.6,0.09523]
[1729230182361,6.3176899,2622.7,2622.6,0.09523]
[1729230182594,6.3176899,2622.7,2622.6,0.24382315]
[1729230182901,7.43729481,2622.7,2622.6,0.24382315]
[1729230185985,7.43729481,2622.7,2622.6,0.09523]
[1729230186182,7.43729481,2622.7,2622.6,0.24382315]
[1729230186381,7.43729481,2622.7,2622.6,0.09523]
[1729230186589,7.43729481,2622.7,2622.6,0.24382315]
[1729230186788,7.43729481,2622.7,2622.6,0.09523]
[1729230187400,7.43729481,2622.7,2622.6,0.24382315]
[1729230187594,7.43729481,2622.7,2622.6,0.09523]
[1729230188200,7.43729481,2622.7,2622.6,0.24382315]
[1729230188395,7.43729481,2622.7,2622.6,0.09523]
[1729230188560,7.43729481,2622.7,2622.6,0.24382315]
[1729230188767,7.43729481,2622.7,2622.6,0.09523]
[1729230188964,7.43729481,2622.7,2622.6,0.24382315]
[1729230189194,7.43729481,2622.7,2622.6,0.09523]
[1729230189387,5.76066491,2622.7,2622.6,0.24382315]
[1729230189563,7.43729481,2622.7,2622.6,0.09523]
[1729230190073,5.76066491,2622.7,2622.6,0.24382315]
[1729230190274,3.81286,2622.7,2622.6,0.09523]
[1729230190474,3.81286,2622.7,2622.6,0.24382315]
[1729230190704,3.81286,2622.7,2622.6,0.09523]
[1729230190876,3.81286,2622.7,2622.6,0.24382315]
[1729230191203,3.81286,2622.7,2622.6,0.09523]
[1729230191375,3.81286,2622.7,2622.6,0.24393368]
[1729230191581,4.82440999,2622.7,2622.6,0.09523]
[1729230191775,4.82440999,2622.7,2622.6,0.24393368]
[1729230191984,4.82440999,2622.7,2622.6,0.09523]
[1729230192184,4.82440999,2622.7,2622.6,0.24393368]
[1729230192375,4.82440999,2622.7,2622.6,0.09523]
[1729230192575,4.82440999,2622.7,2622.6,0.24393368]
[1729230192793,4.82440999,2622.7,2622.6,0.09523]
[1729230193604,4.82440999,2622.7,2622.6,0.24393368]
[1729230193774,4.82440999,2622.7,2622.6,0.09523]
[1729230193974,4.82440999,2622.7,2622.6,0.24393368]
[1729230194188,4.82440999,2622.7,2622.6,0.09523]
[1729230194398,4.82440999,2622.7,2622.6,0.24393368]
[1729230194569,4.82440999,2622.7,2622.6,0.09523]
[1729230194763,4.82440999,2622.7,2622.6,0.24393368]
[1729230194970,4.82440999,2622.7,2622.6,0.09523]
[1729230195202,4.82440999,2622.7,2622.6,0.24393368]
[1729230195365,4.82440999,2622.7,2622.6,0.09523]
[1729230195561,4.82440999,2622.7,2622.6,0.24393368]
[1729230195766,4.82440999,2622.7,2622.6,0.09523]
[1729230196007,4.82440999,2622.7,2622.6,0.24393368]
[1729230196297,4.82440999,2622.7,2622.6,0.2390096]
[1729230197111,3.81271,2622.8,2622.6,0.2390096]
[1729230198114,3.81286,2622.7,2622.6,0.2390096]
[1729230203998,4.62593,2622.9,2622.6,0.2390096]
[1729230204187,3.81246,2623.0,2622.6,0.2390096]
[1729230204188,3.0,2623.0,2622.6,0.2390096]
[1729230204545,1.6766299,2622.9,2622.6,0.09523]
[1729230204690,3.81286,2622.7,2622.6,0.09523]
[1729230205229,4.58084,2622.8,2622.6,0.09523]
[1729230205639,5.4894899,2622.7,2622.6,0.09523]
[1729230205783,3.81286,2622.7,2622.6,0.09523]
[1729230206625,0.7681,2622.8,2622.6,0.09523]
[1729230207218,1.48640319,2622.8,2622.6,0.09523]
[1729230207403,5.29912319,2622.8,2622.6,0.09523]
[1729230207727,1.48640319,2622.8,2622.6,0.09523]
[1729230214323,1.48640319,2622.8,2622.7,0.13890541]
[1729230219253,0.7681,2622.8,2622.7,0.13890541]
[1729230229276,4.58081,2622.8,2622.7,0.13890541]
[1729230231551,0.7681,2622.8,2622.7,0.13890541]
[1729230233135,4.58081,2622.8,2622.7,0.13890541]
[1729230235977,0.7681,2622.8,2622.7,0.13890541]
[1729230236182,4.73830199,2622.9,2622.7,0.13890541]
[1729230236501,8.55099199,2622.9,2622.7,0.13890541]
[1729230237994,4.73830199,2622.9,2622.7,0.13890541]
[1729230238560,3.81258,2622.9,2622.7,0.13890541]
[1729230241403,7.62523,2622.9,2622.7,0.13890541]
[1729230241763,3.81258,2622.9,2622.7,0.13890541]
[1729230242219,4.60606,2623.0,2622.7,0.13890541]
[1729230242373,6.81237,2623.1,2622.7,0.13890541]
[1729230242875,7.40945807,2623.1,2622.7,0.13890541]
[1729230243263,9.08608797,2623.1,2622.7,0.13890541]
[1729230243761,1.6766299,2623.0,2622.7,0.13890541]
[1729230243968,3.81257,2622.9,2622.7,0.13890541]
[1729230244796,4.57597,2622.9,2622.7,0.13890541]
[1729230244997,3.81271,2622.8,2622.7,0.13890541]
[1729230250332,5.4893399,2622.8,2622.7,0.13890541]
[1729230253230,5.4893399,2622.8,2622.6,0.09523]
[1729230253426,5.4893399,2622.8,2622.7,0.12959477]
[1729230253630,3.81271,2622.8,2622.7,0.12959477]
[1729230253832,6.59436787,2622.8,2622.7,0.12959477]
[1729230254124,3.81286,2622.7,2622.6,0.09523]
[1729230254338,5.4894899,2622.7,2622.6,0.09523]
[1729230254496,5.4894899,2622.7,2622.6,0.2248652]
[1729230254694,7.46854967,2622.7,2622.6,0.09523]
[1729230257925,7.46854967,2622.7,2622.6,0.22496244]
[1729230258246,7.46854967,2622.7,2622.6,0.09523]
[1729230258838,7.46854967,2622.7,2622.6,0.22496244]
[1729230259049,7.46854967,2622.7,2622.6,0.09523]
[1729230259197,7.46854967,2622.7,2622.6,0.22509947]
[1729230259404,5.79191977,2622.7,2622.6,0.09523]
[1729230259628,5.79191977,2622.7,2622.6,0.22509505]
[1729230259826,5.79191977,2622.7,2622.6,0.09523]
[1729230260035,4.91773797,2622.8,2622.6,0.22509505]
[1729230260194,3.0,2622.9,2622.6,0.09523]
[1729230260395,6.81261,2622.9,2622.6,0.09523]
[1729230260640,8.4892399,2622.9,2622.7,0.12983788]
[1729230261441,8.4893399,2622.8,2622.7,0.12983788]
[1729230261644,9.2697399,2622.8,2622.7,0.12983788]
[1729230262012,3.81286,2622.7,2622.6,0.09523]
[1729230264134,3.0,2622.9,2622.6,0.09523]
[1729230264403,6.81261,2622.9,2622.6,0.09523]
[1729230264628,3.0,2622.9,2622.6,0.09523]
[1729230264839,6.81259,2622.9,2622.6,0.09523]
[1729230268025,3.81273,2622.8,2622.6,0.09523]
[1729230268607,9.1704789,2622.9,2622.6,0.09523]
[1729230269142,8.4890599,2623.0,2622.6,0.09523]
[1729230269518,1.6766299,2622.9,2622.6,0.09523]
[1729230269717,4.6766299,2622.9,2622.6,0.09523]
[1729230272558,3.0,2622.8,2622.6,0.09523]
[1729230272714,4.6766299,2622.8,2622.6,0.09523]
[1729230273038,9.41412689,2622.8,2622.6,0.09523]
[1729230273240,3.81286,2622.7,2622.6,0.09523]
[1729230273551,7.73741699,2622.8,2622.6,0.22502434]
[1729230273853,7.73741699,2622.8,2622.6,0.09523]
[1729230274013,3.92468699,2622.8,2622.7,0.12975391]
[1729230274427,3.92468699,2622.8,2622.6,0.09523]
[1729230274615,3.0,2622.8,2622.6,0.09523]
[1729230275006,3.0,2622.8,2622.7,0.12975391]
[1729230275450,6.81271,2622.8,2622.7,0.12975391]
[1729230275622,3.0,2622.8,2622.7,0.12975391]
[1729230276349,3.0,2622.8,2622.6,0.09523]
[1729230276555,3.0,2622.8,2622.7,0.12975391]
[1729230276948,6.81271,2622.8,2622.7,0.12975391]
[1729230278561,6.81271,2622.8,2622.6,0.09523]
[1729230278765,6.81271,2622.8,2622.7,0.12975391]
[1729230279277,6.81262,2622.9,2622.7,0.12975391]
[1729230279832,3.0,2622.9,2622.7,0.12975391]
[1729230280047,6.81271,2622.8,2622.7,0.12975391]
[1729230286961,9.3155399,2622.8,2622.7,0.12975391]
[1729230287290,3.81286,2622.7,2622.6,0.09523]
[1729230287584,5.4894899,2622.7,2622.6,0.22502874]
[1729230287742,6.89526559,2622.7,2622.6,0.22502874]
[1729230290860,6.89526559,2622.7,2622.6,0.09523]
[1729230291251,6.89526559,2622.7,2622.6,0.22507298]
[1729230291444,6.89526559,2622.7,2622.6,0.09523]
[1729230291667,6.89526559,2622.7,2622.6,0.22507298]
[1729230291867,6.89526559,2622.7,2622.6,0.09523]
[1729230292065,6.89526559,2622.7,2622.6,0.22507298]
[1729230292279,6.89526559,2622.7,2622.6,0.09523]
[1729230292494,6.89526559,2622.7,2622.6,0.22507298]
[1729230292676,6.89526559,2622.7,2622.6,0.09523]
[1729230292880,10.65386559,2622.7,2622.6,0.22507298]
[1729230293097,10.65386559,2622.7,2622.6,0.09523]
[1729230301106,63.24049549,2622.7,2622.6,0.09523]
[1729230301309,66.89140446,2622.7,2622.6,0.09523]
[1729230301614,64.48751184,2622.7,2622.6,1e-05]
[1729230301900,64.5838221,2622.7,2622.6,1e-05]
[1729230302867,65.1338221,2622.7,2622.6,1e-05]
[1729230303069,7.63049,2622.2,2622.1,0.0053522]
[1729230303266,61.3515149,2622.2,2622.1,0.0053522]
[1729230303696,61.3415149,2622.2,2622.1,0.0053522]
[1729230304007,61.3515149,2622.2,2622.1,0.0053522]
[1729230304366,61.3515149,2622.2,2622.1,2.2e-06]
[1729230304367,62.32660196,2622.2,2622.1,2.2e-06]
[1729230304691,61.9015149,2622.2,2622.1,2.2e-06]
[1729230305768,58.8209039,2622.2,2622.1,2.2e-06]
[1729230306182,61.1119039,2622.2,2622.1,2.2e-06]
[1729230307207,61.950417,2622.2,2622.1,2.2e-06]
[1729230307808,63.6270469,2622.2,2622.1,2.2e-06]
[1729230308173,65.969417,2622.2,2622.1,2.2e-06]
[1729230309192,65.1309039,2622.2,2622.1,2.2e-06]
[1729230311885,65.52917814,2622.2,2622.1,2.2e-06]
[1729230312085,67.20580804,2622.2,2622.1,2.2e-06]
[1729230312316,67.20580804,2622.2,2620.4,3.81617]
[1729230312317,3.81551,2620.9,2620.4,5.4927999]
[1729230312823,3.81551,2620.9,2620.2,3.81646]
[1729230312824,3.81562,2620.8,2620.5,0.12743063]
[1729230313130,5.4921399,2620.9,2620.3,5.4929599]
[1729230313422,3.81551,2620.9,2620.4,5.4928299]
[1729230313590,3.81551,2620.9,2620.4,6.55123002]
[1729230313795,3.81551,2620.9,2620.4,10.36736002]
[1729230314190,3.81551,2620.9,2620.4,6.55116002]
[1729230315700,3.81551,2620.9,2620.4,10.36729002]
[1729230316022,3.81542,2621.0,2620.5,1.6766299]
[1729230316332,3.81542,2621.0,2620.5,2.45917653]
[1729230316535,3.81542,2621.0,2620.5,6.27522653]
[1729230316711,5.4918199,2621.1,2620.6,3.8159]
[1729230317034,3.0,2621.5,2620.5,2.45917653]
[1729230317035,3.81466,2621.5,2621.0,1.6766299]
[1729230317242,8.2412,2621.8,2621.2,1.6766299]
[1729230317243,3.81437,2621.7,2621.2,1.6766299]
[1729230317562,2.14020549,2622.2,2621.4,1.6766299]
[1729230317563,3.81411,2621.9,2621.4,1.6766299]
[1729230317840,3.81411,2621.9,2621.5,0.12717182]
[1729230317994,3.81411,2621.9,2621.3,3.81489]
[1729230318194,3.81424,2621.8,2621.6,0.12713135]
[1729230318434,3.81424,2621.8,2621.3,3.81489]
[1729230318638,3.81424,2621.8,2621.7,0.12709088]
[1729230318795,3.81436,2621.7,2621.3,1.6766299]
[1729230319194,3.81436,2621.7,2621.1,5.4916799]
[1729230319415,3.81436,2621.7,2621.4,0.12721229]
[1729230319618,3.81436,2621.7,2621.2,1.6766299]
[1729230319825,3.81436,2621.7,2621.5,0.12717182]
[1729230319826,3.81456,2621.6,2621.5,0.12717182]
[1729230320036,3.81456,2621.6,2621.2,0.54916799]
[1729230320240,3.81456,2621.6,2621.5,0.12717182]
[1729230320419,3.81456,2621.6,2621.2,0.54916799]
[1729230320630,3.81456,2621.6,2621.5,0.12717182]
[1729230320799,3.81436,2621.7,2621.2,0.54916799]
[1729230321153,3.81436,2621.7,2621.5,0.12717182]
[1729230321154,3.81446,2621.6,2621.5,0.12717182]
[1729230321635,3.81446,2621.6,2621.3,0.60408479]
[1729230321820,3.81446,2621.6,2621.5,0.12717182]
[1729230322025,3.81446,2621.6,2621.1,5.4916799]
[1729230322332,3.81446,2621.6,2621.5,0.12717182]
[1729230323003,3.81446,2621.6,2621.1,5.4916799]
[1729230323237,3.81446,2621.6,2621.5,0.12683551]
[1729230323409,3.81446,2621.6,2621.1,6.42239389]
[1729230323744,3.81446,2621.6,2621.5,0.12683551]
[1729230323942,3.81446,2621.6,2621.1,6.42239389]
[1729230324114,3.81446,2621.6,2621.5,0.12683551]
[1729230324647,3.81446,2621.6,2621.1,6.42239389]
[1729230324938,3.81446,2621.6,2621.5,0.12683551]
[1729230325112,3.81446,2621.6,2621.2,0.64223939]
[1729230325313,3.81446,2621.6,2621.5,0.12683551]
[1729230325541,3.81446,2621.6,2621.1,0.93071399]
[1729230325718,3.81446,2621.6,2621.5,0.12683551]
[1729230325902,3.81433,2621.7,2621.1,2.60734389]
[1729230326103,3.81449,2621.6,2621.5,0.12683551]
[1729230326305,3.81433,2621.7,2621.2,3.81503]
[1729230326615,9.3048899,2621.9,2621.2,1.6766299]
[1729230326943,3.8141,2621.9,2621.5,1.6766299]
[1729230327147,3.8141,2621.9,2621.5,0.94331475]
[1729230327436,3.8141,2621.9,2621.6,0.12678619]
[1729230327643,3.8141,2621.9,2621.4,3.81474]
[1729230327808,3.81411,2621.9,2621.7,0.12674573]
[1729230328002,7.62822,2621.9,2621.3,5.4914299]
[1729230328204,7.62824,2621.9,2621.8,0.12670526]
[1729230328442,7.62824,2621.9,2621.3,5.4914299]
[1729230328643,6.81411,2621.9,2621.8,0.12670526]
[1729230328806,6.81411,2621.9,2621.3,5.4914299]
[1729230329000,6.81411,2621.9,2621.8,0.12666545]
[1729230329219,6.81411,2621.9,2621.3,5.4914299]
[1729230329806,3.81417,2621.8,2621.4,0.12682731]
[1729230330108,7.62845,2621.8,2621.4,0.12682731]
[1729230330309,3.81417,2621.8,2621.4,0.12682731]
[1729230331468,3.81417,2621.8,2621.2,9.3064299]
[1729230331761,3.81417,2621.8,2621.5,0.12678242]
[1729230332051,3.81417,2621.8,2621.6,0.12674195]
[1729230332243,3.81417,2621.8,2621.3,3.81489]
[1729230332443,3.81417,2621.8,2621.7,0.18728565]
[1729230332649,3.81417,2621.8,2621.3,3.81489]
[1729230332832,3.81417,2621.8,2621.7,0.18728565]
[1729230333027,3.81417,2621.8,2621.3,3.81489]
[1729230333234,3.81417,2621.8,2621.7,0.18728565]
[1729230333429,3.81417,2621.8,2621.3,3.81489]
[1729230333653,3.81417,2621.8,2621.7,0.18728565]
[1729230333851,3.81417,2621.8,2621.3,5.4915199]
[1729230334061,3.81417,2621.8,2621.3,6.51522619]
[1729230334220,3.81417,2621.8,2621.4,0.18736532]
[1729230335822,3.81417,2621.8,2621.4,1.86399522]
[1729230337162,3.81417,2621.8,2621.4,0.18736532]
[1729230337366,3.0,2622.0,2621.5,1.6766299]
[1729230337516,6.81397,2622.0,2621.4,5.67872522]
[1729230337724,3.81409,2621.9,2621.6,0.18727534]
[1729230337955,3.81409,2621.9,2621.5,0.18731812]
[1729230338254,3.81409,2621.9,2621.6,0.18727534]
[1729230338416,6.81397,2622.0,2621.4,6.54309705]
[1729230338617,10.62797,2622.0,2621.7,0.18723256]
[1729230338856,12.3045999,2622.0,2621.4,3.81473]
[1729230339055,3.81402,2621.9,2621.8,0.18718979]
[1729230339276,9.72111189,2621.9,2621.4,3.81473]
[1729230339566,8.4906499,2621.9,2621.8,0.18718979]
[1729230339764,8.4906499,2621.9,2621.4,3.81473]
[1729230339948,8.4906499,2621.9,2621.8,0.18718979]
[1729230340122,8.4906499,2621.9,2621.4,3.81473]
[1729230340324,6.81402,2621.9,2621.8,0.18718979]
[1729230340537,8.12716199,2621.9,2621.4,3.81473]
[1729230340745,6.81402,2621.9,2621.8,0.18718979]
[1729230340965,6.81402,2621.9,2621.4,3.81473]
[1729230341178,6.81402,2621.9,2621.8,0.18718979]
[1729230341327,6.81402,2621.9,2621.4,3.81467]
[1729230341529,6.81402,2621.9,2621.8,0.18718979]
[1729230341755,6.81402,2621.9,2621.4,3.81467]
[1729230341959,6.81402,2621.9,2621.8,0.18718979]
[1729230342166,6.81402,2621.9,2621.4,3.81467]
[1729230342462,8.4906499,2621.9,2621.4,3.81467]
[1729230342626,6.81402,2621.9,2621.5,0.18731812]
[1729230345670,3.81426,2621.8,2621.5,0.18731812]
[1729230345964,3.81426,2621.8,2621.2,9.3064899]
[1729230346165,8.4906499,2621.9,2621.6,0.18725764]
[1729230346369,3.81434,2621.7,2621.2,3.81492]
[1729230346876,3.81434,2621.7,2621.2,5.4915499]
[1729230348163,3.81434,2621.7,2621.2,3.81492]
[1729230348668,3.81434,2621.7,2621.2,7.62989]
[1729230349170,3.81434,2621.7,2621.2,5.4915499]
[1729230349534,3.81434,2621.7,2621.3,0.18737714]
[1729230349872,3.81434,2621.7,2621.2,5.4915499]
[1729230350136,3.81434,2621.7,2621.4,0.18733435]
[1729230350285,3.81434,2621.7,2621.3,0.18737714]
[1729230350441,3.81434,2621.7,2621.2,3.81492]
[1729230350643,3.81434,2621.7,2621.4,0.18733435]
[1729230350948,3.81434,2621.7,2621.2,5.4915499]
[1729230351148,3.81434,2621.7,2621.5,0.18729157]
[1729230351373,3.81434,2621.7,2621.3,3.81488]
[1729230351684,3.81434,2621.7,2621.3,5.4915099]
[1729230351985,3.81434,2621.7,2621.4,0.18733435]
[1729230352985,3.81418,2621.8,2621.4,0.18733435]
[1729230356691,3.81428,2621.8,2621.2,6.42222889]
[1729230356851,3.81428,2621.8,2621.5,0.187265]
[1729230357053,3.81428,2621.8,2621.2,5.4915499]
[1729230357371,3.81428,2621.8,2621.6,0.18722222]
[1729230357615,3.81428,2621.8,2621.2,5.4915499]
[1729230357879,3.81428,2621.8,2621.2,9.3065099]
[1729230358186,3.81428,2621.8,2621.3,0.18735056]
[1729230358584,3.81428,2621.8,2621.2,9.3065099]
[1729230358889,3.81428,2621.8,2621.3,4.00220056]
[1729230362198,3.81432,2621.7,2621.3,0.18735056]
[1729230362379,3.81417,2621.8,2621.3,4.00221056]
[1729230362725,6.81391,2622.0,2621.5,5.4911699]
[1729230362866,3.0,2622.0,2621.6,0.57547713]
[1729230363067,4.64059,2622.1,2621.6,4.00164894]
[1729230363670,8.45442,2622.1,2621.6,4.00164894]
[1729230364071,3.81392,2622.0,2621.6,0.18720894]
[1729230364468,4.64059,2622.1,2621.6,0.18720894]
[1729230364917,8.45442,2622.1,2621.6,0.18720894]
[1729230365608,4.64059,2622.1,2621.6,0.18720894]
[1729230365970,8.45443,2622.1,2621.6,0.18720894]
[1729230366286,3.81379,2622.1,2621.6,5.67826884]
[1729230366488,7.62763,2622.1,2621.6,6.62754472]
[1729230366899,7.62763,2622.1,2621.6,4.95091482]
[1729230367269,3.81379,2622.1,2621.6,4.95091482]
[1729230367505,7.62761,2622.1,2621.6,4.95091482]
[1729230367707,3.81379,2622.1,2621.6,4.95091482]
[1729230367912,7.6276,2622.1,2621.6,4.95091482]
[1729230368905,3.81379,2622.1,2621.6,4.95091482]
[1729230369208,3.81379,2622.1,2621.6,6.62754472]
[1729230370274,7.57018,2622.3,2621.7,2.34701269]
[1729230370611,6.81348,2622.3,2621.8,5.4907199]
[1729230370998,6.81348,2622.3,2621.9,0.18697006]
[1729230372416,3.8136,2622.2,2621.9,0.18697006]
[1729230382222,0.8083,2622.5,2622.1,1.6766299]
[1729230382391,3.0,2622.7,2622.2,1.6766299]
[1729230382595,6.2797699,2622.8,2622.2,5.67698627]
[1729230382792,10.0925799,2622.8,2622.2,5.67698627]
[1729230382994,11.16157618,2622.8,2622.2,5.67698627]
[1729230383290,3.8129,2622.7,2622.2,1.86343627]
[1729230384741,3.8129,2622.7,2622.2,5.67699627]
[1729230386840,0.8,2622.9,2622.6,1.6766299]
[1729230387132,3.8,2623.1,2622.5,9.3028199]
[1729230387343,3.8,2623.1,2622.6,3.99934231]
[1729230387344,7.61235,2623.1,2622.6,3.99934231]
[1729230387693,3.81224,2623.2,2622.7,3.81276]
[1729230387910,5.4888699,2623.2,2622.8,0.18626682]
[1729230388113,5.4888699,2623.2,2622.6,5.4895199]
[1729230388397,5.4888699,2623.2,2622.7,0.18630072]
[1729230392761,3.81243,2623.0,2622.7,0.18630072]
[1729230393067,5.4893399,2622.8,2622.7,0.18630072]
[1729230393227,5.4893399,2622.8,2622.2,5.4901899]
[1729230393561,5.4893399,2622.8,2622.3,0.18603844]
[1729230393562,3.81287,2622.7,2622.3,0.18603844]
[1729230393744,5.4894999,2622.7,2622.3,0.18603844]
[1729230393951,3.0,2623.0,2622.6,1.6766299]
[1729230394260,3.0,2623.0,2622.5,5.4896899]
[1729230394466,3.0,2623.0,2622.7,0.18594259]
[1729230394766,4.6766299,2623.0,2622.8,0.18589985]
[1729230394926,3.0,2623.0,2622.8,0.18589985]
[1729230395261,3.0,2623.0,2622.6,3.813]
[1729230395867,3.0,2623.0,2622.7,0.18594259]
[1729230396932,8.4891899,2623.0,2622.7,0.18594259]
[1729230397132,0.8057,2622.8,2622.3,3.81334]
[1729230397445,0.8057,2622.8,2622.3,5.4899499]
[1729230397848,0.8057,2622.8,2622.3,9.3033199]
[1729230398461,4.61844,2622.8,2622.3,5.4899499]
[1729230398679,0.8057,2622.8,2622.3,9.3033099]
[1729230398823,0.8057,2622.8,2622.4,3.81327]
[1729230400945,0.8057,2622.8,2622.3,6.42028089]
[1729230401158,4.61843,2622.8,2622.3,6.42028089]
[1729230401339,0.8057,2622.8,2622.3,10.23364089]
[1729230401535,0.8057,2622.8,2622.4,3.81328]
[1729230401739,4.61845,2622.8,2622.3,6.42028089]
[1729230402183,4.61845,2622.8,2622.3,8.55700099]
[1729230402642,4.61845,2622.8,2622.3,4.74365099]
[1729230403040,0.8057,2622.8,2622.3,4.74365099]
[1729230403272,0.8057,2622.8,2622.4,3.81327]
[1729230403783,0.8057,2622.8,2622.3,4.74365099]
[1729230403935,0.8057,2622.8,2622.4,3.81328]
[1729230408552,0.8057,2622.8,2622.5,3.8131]
[1729230408952,8.4890699,2623.0,2622.5,3.8131]
[1729230408953,7.62314,2623.0,2622.5,3.8131]
[1729230409389,7.62314,2623.0,2622.6,0.18594995]
[1729230409549,13.1122999,2623.0,2622.6,0.18594995]
[1729230409888,13.1122999,2623.0,2622.7,0.18590721]
[1729230410084,13.1122999,2623.0,2622.4,8.64980809]
[1729230410290,13.1122999,2623.0,2622.5,0.18593523]
[1729230412751,3.81258,2622.9,2622.5,0.18593523]
[1729230412946,5.4892099,2622.9,2622.5,0.18593523]
[1729230413251,3.81258,2622.9,2622.5,0.18593523]
[1729230414055,5.4892099,2622.9,2622.5,0.18593523]
[1729230414255,3.81258,2622.9,2622.5,0.18593523]
[1729230414455,3.81276,2622.8,2622.5,0.18593523]
[1729230414697,3.81276,2622.8,2622.3,5.4900299]
[1729230414859,3.81276,2622.8,2622.6,0.18430248]
[1729230415053,5.4892099,2622.9,2622.3,3.81344]
[1729230415258,5.4892099,2622.9,2622.4,0.18438798]
[1729230415661,5.4892099,2622.9,2622.4,3.99767798]
[1729230415862,3.81258,2622.9,2622.4,3.99767798]
[1729230418577,3.81272,2622.8,2622.4,0.18438798]
[1729230418904,3.81272,2622.8,2622.4,3.99765798]
[1729230420213,3.81272,2622.8,2622.4,0.18438798]
[1729230422095,3.81272,2622.8,2622.4,3.99767798]
[1729230423178,13.1124099,2623.0,2622.4,3.99767798]
[1729230423379,3.81262,2622.9,2622.4,3.99767798]
[1729230428500,9.2998399,2623.0,2622.5,3.81311]
[1729230428705,7.62321,2623.0,2622.6,0.18431132]
[1729230429025,0.8107,2623.0,2622.7,3.81279]
[1729230429231,6.2862199,2623.3,2622.7,4.76908603]
[1729230429390,6.2862199,2623.3,2622.8,3.99685279]
[1729230430087,6.2862199,2623.3,2622.8,0.18417279]
[1729230430285,6.2862199,2623.3,2622.7,3.81272]
[1729230430527,5.4888099,2623.2,2622.8,0.18407999]
[1729230430731,5.4888099,2623.2,2622.7,3.81272]
[1729230430928,5.4888099,2623.2,2622.8,0.18407999]
[1729230431105,5.4888099,2623.2,2622.7,3.81272]
[1729230431305,5.4888099,2623.2,2622.8,0.18407999]
[1729230431506,5.4888099,2623.2,2622.7,3.81272]
[1729230431703,5.4888099,2623.2,2622.8,0.18407999]
[1729230431922,1.6766299,2623.1,2622.6,3.81297]
[1729230432123,5.4889299,2623.1,2622.7,0.18412273]
[1729230433089,0.7889,2623.0,2622.7,0.18412273]
[1729230439859,0.7889,2623.0,2622.7,3.99697273]
[1729230444745,0.7889,2623.0,2622.7,0.18412273]
[1729230454070,4.60134,2623.0,2622.7,0.18412273]
[1729230454276,4.59411,2622.8,2622.7,0.18412273]
[1729230454770,4.59411,2622.8,2622.7,0.17798858]
[1729230454936,4.59411,2622.8,2622.3,3.81339]
[1729230455132,4.59411,2622.8,2622.4,0.17811682]
[1729230455361,0.7814,2622.8,2622.4,0.17811682]
[1729230458156,2.4580299,2622.8,2622.4,0.17811682]
[1729230461152,0.7814,2622.8,2622.4,0.17811682]
[1729230461384,2.4580299,2622.8,2622.4,0.17811682]
[1729230461584,2.4580299,2622.8,2622.4,3.81329]
[1729230461894,0.7814,2622.8,2622.5,0.17807407]
[1729230462047,3.81287,2622.7,2622.5,0.17807407]
[1729230462248,5.4894999,2622.7,2622.5,0.17807407]
[1729230462595,0.7814,2622.8,2622.6,0.17803132]
[1729230462954,0.7814,2622.8,2622.4,3.81328]
[1729230463147,0.7814,2622.8,2622.7,0.17798858]
[1729230463348,0.7814,2622.8,2622.4,3.81328]
[1729230463602,0.7814,2622.8,2622.7,0.17798858]
[1729230463889,0.7814,2622.8,2622.4,4.75124885]
[1729230463890,0.7814,2622.8,2622.4,3.81328]
[1729230464090,0.7814,2622.8,2622.7,0.17798858]
[1729230464791,0.7814,2622.8,2622.4,3.81328]
[1729230464999,0.7814,2622.8,2622.7,0.17802394]
[1729230465187,0.7814,2622.8,2622.4,3.81328]
[1729230465492,0.7814,2622.8,2622.7,0.17802394]
[1729230465648,0.7814,2622.8,2622.4,3.81328]
[1729230465974,0.7814,2622.8,2622.4,4.75124885]
[1729230466177,0.7814,2622.8,2622.5,0.17810943]
[1729230466376,0.59712234,2623.3,2622.5,0.17810943]
[1729230466377,0.7631,2623.0,2622.5,0.17810943]
[1729230466586,0.7631,2623.2,2622.8,5.4892699]
[1729230466766,0.7631,2623.2,2622.9,0.17796941]
[1729230468653,2.4397299,2623.2,2622.9,0.17796941]
[1729230468858,2.4397299,2623.2,2622.7,7.62554]
[1729230469059,2.4397299,2623.2,2623.0,0.17792667]
[1729230469258,3.12461412,2623.2,2622.7,7.62554]
[1729230469459,2.4397299,2623.2,2623.1,0.17788394]
[1729230469661,2.4397299,2623.2,2622.7,7.62554]
[1729230469896,2.4397299,2623.2,2623.1,0.17788394]
[1729230470058,2.4397299,2623.2,2622.7,7.62554]
[1729230470261,2.4397299,2623.2,2623.1,0.17788394]
[1729230470476,0.7631,2623.2,2622.8,3.81268]
[1729230470663,0.7631,2623.2,2622.8,4.74288599]
[1729230470863,2.4397299,2623.2,2622.9,0.17796941]
[1729230471391,0.7631,2623.2,2622.9,0.17796941]
[1729230473708,2.4397299,2623.2,2622.9,0.17796941]
[1729230474198,0.7631,2623.2,2622.9,0.17796941]
[1729230475904,0.7631,2623.2,2622.9,3.99052941]
[1729230476197,0.7631,2623.2,2622.9,4.94614508]
[1729230477167,0.7631,2623.2,2622.9,1.13358508]
[1729230478185,3.81201,2623.3,2622.9,1.13358508]
[1729230478392,3.81201,2623.3,2622.9,4.94614508]
[1729230480116,5.4886399,2623.3,2622.9,0.17796941]
[1729230480342,3.81201,2623.3,2622.9,0.17796941]
[1729230482212,1.6766299,2623.2,2622.9,0.17796941]
[1729230482502,3.81201,2623.3,2622.7,5.4893799]
[1729230482702,5.4886399,2623.3,2623.0,0.17769686]
[1729230482903,5.4886399,2623.3,2622.7,7.62553]
[1729230483107,5.4414299,2623.4,2623.1,0.17765413]
[1729230483306,3.81199,2623.3,2622.9,3.81255]
[1729230483607,3.7648,2623.4,2622.9,5.4891099]
[1729230483608,0.7648,2623.4,2622.9,5.4891099]
[1729230483816,0.8056,2623.8,2623.2,1.6766299]
[1729230483974,0.8056,2623.8,2623.3,3.98943425]